bitfinex-derivatives/quotes_BTCF0:USTF0_20210703
["timestamp","ask_amount","ask_price","bid_price","bid_amount"]
[1625270544328,0.78678088,33880.0,33873.0,0.24057544]
[1625270544475,0.78678088,33880.0,33865.0,0.9848]
[1625270544575,0.84578088,33880.0,33866.0,0.059]
[1625270544925,0.84578088,33880.0,33858.0,0.57665701]
[1625270545025,0.84578088,33880.0,33858.0,0.63565701]
[1625270545128,0.84578088,33880.0,33858.0,0.57665701]
[1625270545277,0.84578088,33880.0,33858.0,0.059]
[1625270545278,1.34578088,33880.0,33858.0,0.059]
[1625270545379,0.24057544,33863.0,33862.0,0.29957544]
[1625270545528,0.54264544,33863.0,33862.0,0.29957544]
[1625270546628,0.24057544,33867.0,33862.0,0.35857544]
[1625270546728,0.24057544,33867.0,33862.0,0.55773544]
[1625270546829,0.057,33879.0,33862.0,0.55773544]
[1625270546929,0.24057544,33880.0,33862.0,0.55773544]
[1625270547079,0.29957544,33880.0,33862.0,0.55773544]
[1625270547179,0.24057544,33880.0,33862.0,0.55773544]
[1625270547382,0.24057544,33880.0,33878.0,0.24057544]
[1625270547480,0.24057544,33880.0,33878.0,0.52483544]
[1625270549183,0.24057544,33880.0,33878.0,0.29957544]
[1625270549383,0.24057544,33879.0,33878.0,0.24057544]
[1625270550836,0.29957544,33879.0,33878.0,0.24057544]
[1625270551338,0.24057544,33879.0,33878.0,0.24057544]
[1625270552039,0.24057544,33879.0,33868.0,0.24057544]
[1625270552189,0.24057544,33879.0,33868.0,0.29957544]
[1625270552190,0.53821544,33879.0,33868.0,0.29957544]
[1625270552290,0.47921544,33879.0,33868.0,0.29957544]
[1625270552491,0.47921544,33879.0,33868.0,0.35857544]
[1625270553343,0.48115088,33869.0,33868.0,0.35857544]
[1625270555497,0.48115088,33869.0,33868.0,0.29957544]
[1625270555748,0.78184088,33869.0,33868.0,0.29957544]
[1625270556598,0.78184088,33869.0,33868.0,0.24057544]
[1625270556748,0.78184088,33869.0,33868.0,0.29957544]
[1625270556850,0.78184088,33869.0,33868.0,0.24057544]
[1625270556948,0.78184088,33869.0,33868.0,0.29957544]
[1625270557602,0.79240575,33869.0,33868.0,0.29957544]
[1625270557954,0.79240575,33869.0,33868.0,0.35857544]
[1625270558049,0.49171575,33869.0,33868.0,0.35857544]
[1625270558152,0.48115088,33869.0,33868.0,0.35857544]
[1625270558400,0.24057544,33869.0,33868.0,0.35857544]
[1625270558653,0.24057544,33869.0,33868.0,0.29957544]
[1625270558750,0.43993544,33869.0,33868.0,0.29957544]
[1625270559148,0.45050014,33869.0,33868.0,0.29957544]
[1625270559703,0.45050014,33869.0,33868.0,0.24057544]
[1625270559803,0.45050014,33869.0,33868.0,0.29957544]
[1625270560102,0.45050014,33869.0,33868.0,0.24057544]
[1625270560202,0.45050014,33869.0,33868.0,0.29957544]
[1625270560803,0.45050014,33869.0,33868.0,0.35857544]
[1625270561209,0.25114014,33869.0,33868.0,0.35857544]
[1625270561808,0.25114014,33869.0,33868.0,0.56090544]
[1625270562109,0.24057544,33869.0,33868.0,0.56090544]
[1625270562563,0.24057544,33869.0,33868.0,5.41720544]
[1625270563060,0.24057544,33874.0,33868.0,5.41720544]
[1625270563360,0.24057544,33878.0,33868.0,5.41720544]
[1625270563460,0.24057544,33878.0,33873.0,0.48115088]
[1625270563561,0.24057544,33878.0,33873.0,0.59915088]
[1625270563663,0.01054399,33877.0,33873.0,0.59915088]
[1625270565416,0.01054399,33877.0,33873.0,0.54015088]
[1625270565719,0.01054399,33877.0,33873.0,0.59915088]
[1625270566571,0.01054399,33877.0,33873.0,0.54015088]
[1625270568326,0.01054399,33877.0,33873.0,0.59915088]
[1625270572989,0.01054399,33877.0,33873.0,0.78978088]
[1625270573086,0.24057544,33878.0,33874.0,0.00677542]
[1625270573186,0.24057544,33878.0,33874.0,0.12477542]
[1625270573536,0.24057544,33878.0,33877.0,0.24057544]
[1625270573635,0.24057544,33878.0,33877.0,0.35857544]
[1625270573838,0.25110471,33878.0,33877.0,0.35857544]
[1625270574391,0.24057544,33878.0,33877.0,0.35857544]
[1625270575438,0.25110444,33878.0,33877.0,0.35857544]
[1625270575739,0.24057544,33878.0,33877.0,0.35857544]
[1625270575990,0.25110463,33878.0,33877.0,0.29957544]
[1625270576643,0.25110463,33878.0,33877.0,0.35857544]
[1625270577094,0.25110463,33878.0,33877.0,0.29957544]
[1625270577543,0.25110463,33878.0,33877.0,0.35857544]
[1625270577895,0.24057544,33878.0,33877.0,0.3653566]
[1625270577995,0.24057544,33878.0,33877.0,0.3063566]
[1625270578093,0.24057544,33878.0,33877.0,0.06578116]
[1625270578193,0.24057544,33878.0,33877.0,0.059]
[1625270578194,0.25110503,33878.0,33877.0,0.059]
[1625270578396,0.24057544,33878.0,33877.0,0.059]
[1625270578497,0.24057544,33878.0,33877.0,0.06578178]
[1625270578897,0.52272544,33878.0,33877.0,0.06578178]
[1625270578997,0.52272544,33878.0,33877.0,0.059]
[1625270579251,0.52272544,33878.0,33877.0,0.06578182]
[1625270579548,0.52272544,33878.0,33877.0,0.12478182]
[1625270580301,0.52272544,33878.0,33877.0,0.06578182]
[1625270581004,0.52272544,33878.0,33877.0,0.12478182]
[1625270581253,0.52272544,33878.0,33877.0,0.06578182]
[1625270584216,0.52272544,33878.0,33877.0,0.12478182]
[1625270584318,0.24057544,33878.0,33877.0,0.12478182]
[1625270585518,0.24057544,33878.0,33877.0,0.36535726]
[1625270587824,0.24057544,33878.0,33877.0,1.20377146]
[1625270588773,0.24057544,33878.0,33877.0,1.43162146]
[1625270589125,0.24057544,33878.0,33877.0,2.7720138]
[1625270589475,0.24057544,33883.0,33877.0,2.7720138]
[1625270589628,0.982,33891.0,33882.0,0.24057544]
[1625270589733,0.982,33891.0,33882.0,0.29957544]
[1625270589826,0.982,33891.0,33882.0,0.35857544]
[1625270589928,0.982,33891.0,33883.0,0.0067997]
[1625270590026,0.982,33891.0,33883.0,0.0657997]
[1625270590328,0.29957544,33886.0,33883.0,0.0657997]
[1625270590428,0.29957544,33886.0,33884.0,0.5931611]
[1625270590529,0.29957544,33886.0,33884.0,0.6521611]
[1625270590631,0.29957544,33886.0,33884.0,0.5863608]
[1625270590729,0.29957544,33886.0,33882.0,0.24057544]
[1625270590829,0.50927544,33886.0,33882.0,0.24057544]
[1625270590932,0.01050102,33885.0,33882.0,0.24057544]
[1625270591130,0.06950102,33885.0,33882.0,0.24057544]
[1625270591230,0.059,33885.0,33883.0,0.0068007]
[1625270591482,0.01050126,33884.0,33883.0,0.0068007]
[1625270591580,0.2510767,33884.0,33883.0,0.0068007]
[1625270591781,0.2510767,33884.0,33882.0,0.24057544]
[1625270591983,0.01050144,33883.0,33882.0,0.24057544]
[1625270592534,0.01050144,33883.0,33882.0,0.24737659]
[1625270593335,0.01050144,33883.0,33882.0,0.23787659]
[1625270593486,0.06950144,33883.0,33882.0,0.23787659]
[1625270593588,0.31007688,33883.0,33882.0,0.23107544]
[1625270594138,0.31007688,33883.0,33882.0,0.23787694]
[1625270594237,0.31007688,33883.0,33882.0,0.0068015]
[1625270594390,0.31007688,33883.0,33877.0,0.08399339]
[1625270594487,0.0894,33882.0,33877.0,0.08399339]
[1625270594588,0.1484,33882.0,33877.0,0.08399339]
[1625270594688,0.2179024,33882.0,33878.0,0.00680207]
[1625270594788,0.2179024,33882.0,33877.0,0.04579546]
[1625270594938,0.01050052,33881.0,33877.0,0.04579546]
[1625270595039,0.06950052,33881.0,33873.0,0.7450205]
[1625270595288,0.06950052,33881.0,33873.0,0.8040205]
[1625270595489,0.01051737,33880.0,33874.0,0.51115726]
[1625270595590,0.48115088,33875.0,33874.0,0.57015726]
[1625270595740,0.48115088,33875.0,33874.0,0.56994498]
[1625270596041,0.48115088,33875.0,33874.0,1.24196648]
[1625270596140,0.48115088,33875.0,33874.0,1.18296648]
[1625270596540,0.48115088,33875.0,33874.0,0.51094498]
[1625270596840,0.48115088,33875.0,33874.0,0.51103986]
[1625270597190,0.48115088,33875.0,33874.0,0.17487371]
[1625270597493,0.48115088,33875.0,33874.0,0.00679063]
[1625270597590,0.72172632,33875.0,33874.0,0.00679063]
[1625270598695,0.72172632,33875.0,33874.0,0.17491753]
[1625270598795,0.78072632,33875.0,33874.0,0.17491753]
[1625270598944,0.78072632,33875.0,33871.0,0.31173551]
[1625270599044,0.78072632,33875.0,33871.0,0.29473551]
[1625270599193,1.29126166,33875.0,33870.0,0.7574517]
[1625270599295,0.03,33874.0,33870.0,0.6955517]
[1625270599394,0.148,33874.0,33870.0,0.6235517]
[1625270599496,0.5,33873.0,33870.0,0.5521517]
[1625270599610,0.24057544,33871.0,33864.0,1.01065702]
[1625270599744,0.559,33870.0,33864.0,0.85045702]
[1625270599844,0.81078,33870.0,33864.0,0.85045702]
[1625270599945,0.5,33869.0,33864.0,0.68015702]
[1625270600054,0.5,33868.0,33863.0,1.10235688]
[1625270600147,0.5,33867.0,33863.0,0.56335688]
[1625270600298,3.31457468,33865.0,33846.0,2.47542439]
[1625270600409,0.5,33864.0,33846.0,2.47542439]
[1625270600501,0.5,33864.0,33846.0,2.59342439]
[1625270600502,0.559,33864.0,33846.0,2.59342439]
[1625270600598,1.57036684,33856.0,33847.0,0.00678327]
[1625270600702,1.91608684,33856.0,33847.0,0.12478327]
[1625270600948,1.57053622,33854.0,33847.0,0.12478327]
[1625270601149,1.57053622,33854.0,33848.0,0.00678327]
[1625270601248,1.57042359,33857.0,33848.0,0.00678327]
[1625270601350,1.57042359,33857.0,33848.0,0.12478327]
[1625270601456,1.56875297,33860.0,33848.0,0.12478327]
[1625270601556,1.56875297,33860.0,33848.0,0.00678327]
[1625270601649,1.56875297,33860.0,33846.0,1.19537544]
[1625270601650,0.24057544,33851.0,33846.0,1.19537544]
[1625270601750,0.51594544,33851.0,33848.0,0.059]
[1625270601900,0.51594544,33851.0,33846.0,1.19537544]
[1625270601999,0.51594544,33851.0,33846.0,1.25437544]
[1625270602148,0.51594544,33851.0,33846.0,1.31337544]
[1625270603003,0.51594544,33851.0,33847.0,0.00678302]
[1625270603152,0.51594544,33851.0,33847.0,0.12478302]
[1625270603403,0.51594544,33851.0,33847.0,0.06578302]
[1625270603503,0.51594544,33851.0,33847.0,0.118]
[1625270603603,0.51594544,33851.0,33850.0,0.24057544]
[1625270603804,0.51594544,33851.0,33850.0,0.29957544]
[1625270603906,0.51594544,33851.0,33850.0,0.35857544]
[1625270604457,0.51594544,33851.0,33850.0,0.29957544]
[1625270604564,0.51594544,33851.0,33850.0,0.24057544]
[1625270604705,0.51594544,33851.0,33850.0,0.29957544]
[1625270604806,0.24057544,33851.0,33850.0,0.35857544]
[1625270604959,1.56743991,33861.0,33850.0,0.35857544]
[1625270605068,1.5674979,33860.0,33850.0,0.35857544]
[1625270605160,1.5674979,33860.0,33850.0,0.36536517]
[1625270605362,1.5674979,33860.0,33855.0,5.3059]
[1625270605510,1.56708456,33870.0,33855.0,5.72335]
[1625270605609,0.24057544,33867.0,33866.0,0.24057544]
[1625270605760,0.24057544,33867.0,33866.0,0.64328544]
[1625270606912,0.24057544,33867.0,33866.0,0.59134217]
[1625270608471,0.24057544,33871.0,33866.0,0.59134217]
[1625270609622,0.24057544,33871.0,33870.0,0.24057544]
[1625270609773,0.24057544,33871.0,33870.0,0.35857544]
[1625270610022,0.24057544,33874.0,33870.0,0.35857544]
[1625270611624,0.24057544,33874.0,33873.0,0.24057544]
[1625270611774,0.24057544,33874.0,33873.0,0.35857544]
[1625270618285,1.84072399,33878.0,33873.0,0.35857544]
[1625270618386,1.63299399,33878.0,33873.0,0.35857544]
[1625270618486,0.24057544,33878.0,33873.0,0.35857544]
[1625270619692,0.24057544,33878.0,33877.0,0.24057544]
[1625270619789,0.24057544,33878.0,33877.0,0.35857544]
[1625270620392,0.24057544,33878.0,33877.0,0.29957544]
[1625270620490,0.24057544,33878.0,33877.0,0.35857544]
[1625270620593,1.45896282,33878.0,33877.0,0.35857544]
[1625270621143,2.85141838,33878.0,33877.0,0.29957544]
[1625270621544,2.85141838,33878.0,33877.0,0.059]
[1625270621746,3.09199382,33878.0,33877.0,0.059]
[1625270621846,3.17989382,33878.0,33877.0,0.118]
[1625270621943,3.09199382,33878.0,33877.0,0.118]
[1625270622094,4.658655,33878.0,33877.0,0.118]
[1625270622445,3.09199382,33878.0,33877.0,0.118]
[1625270622794,3.09199382,33878.0,33866.0,1.3643776]
[1625270622895,3.43566382,33878.0,33866.0,1.3643776]
[1625270623045,3.43566382,33878.0,33866.0,1.4233776]
[1625270623147,1.21856035,33871.0,33866.0,0.18863217]
[1625270623247,1.52199035,33871.0,33866.0,0.18863217]
[1625270623350,1.58099035,33871.0,33866.0,0.18863217]
[1625270623444,1.52199035,33871.0,33866.0,0.18863217]
[1625270623800,0.48115088,33867.0,33866.0,0.18863217]
[1625270623999,0.54015088,33867.0,33862.0,1.17732205]
[1625270624199,0.54015088,33867.0,33861.0,1.17769136]
[1625270624700,0.54015088,33867.0,33860.0,0.24057544]
[1625270624701,1.75887753,33867.0,33860.0,0.24057544]
[1625270624798,1.81787753,33867.0,33860.0,0.04757544]
[1625270625099,1.21882583,33864.0,33860.0,0.04757544]
[1625270625199,1.48405583,33864.0,33860.0,0.04757544]
[1625270625350,0.26523,33864.0,33860.0,0.04757544]
[1625270625704,0.24057544,33861.0,33860.0,0.04757544]
[1625270625901,0.24057544,33861.0,33860.0,0.10657544]
[1625270626201,0.24057544,33861.0,33860.0,0.04757544]
[1625270627353,0.24057544,33861.0,33860.0,0.10657544]
[1625270627605,0.24057544,33861.0,33860.0,0.16557544]
[1625270628007,0.24057544,33861.0,33860.0,0.10657544]
[1625270628108,0.49111544,33861.0,33860.0,0.11335183]
[1625270628407,0.49111544,33861.0,33860.0,0.17235183]
[1625270629008,0.49111544,33861.0,33860.0,1.35041361]
[1625270629110,0.24057544,33861.0,33860.0,1.35041361]
[1625270629313,0.24057544,33861.0,33860.0,2.69565564]
[1625270629411,0.48115088,33867.0,33860.0,2.69565564]
[1625270629512,0.48115088,33867.0,33860.0,2.99294564]
[1625270629761,0.24057544,33867.0,33866.0,0.24057544]
[1625270629860,0.24057544,33867.0,33866.0,0.35857544]
[1625270630412,0.24057544,33867.0,33866.0,0.29957544]
[1625270630713,0.24057544,33867.0,33866.0,0.35857544]
[1625270630815,0.24057544,33867.0,33866.0,0.29957544]
[1625270632216,0.24057544,33867.0,33866.0,0.35857544]
[1625270632315,0.24057544,33867.0,33866.0,0.36535149]
[1625270632867,0.24057544,33867.0,33866.0,0.30635149]
[1625270633522,0.24057544,33867.0,33866.0,0.36535149]
[1625270633824,0.48115088,33867.0,33866.0,0.30635149]
[1625270633928,0.48115088,33867.0,33866.0,0.36535149]
[1625270634025,1.52547587,33867.0,33866.0,0.36535149]
[1625270634326,0.48115088,33867.0,33866.0,0.36535149]
[1625270635428,0.71300088,33867.0,33866.0,0.36535149]
[1625270635530,0.71300088,33867.0,33866.0,0.30635149]
[1625270635629,0.71300088,33867.0,33866.0,0.36535149]
[1625270635828,0.71300088,33867.0,33866.0,0.30635149]
[1625270636129,0.71300088,33867.0,33866.0,0.36535149]
[1625270636228,0.71300088,33867.0,33866.0,0.30635149]
[1625270636330,0.71300088,33867.0,33866.0,0.36535149]
[1625270636431,0.71300088,33867.0,33866.0,0.30635149]
[1625270637181,0.71300088,33867.0,33866.0,0.24735149]
[1625270637382,1.75749074,33867.0,33866.0,0.24735149]
[1625270637581,1.81649074,33867.0,33862.0,0.57558534]
[1625270637734,0.5,33866.0,33862.0,0.37058534]
[1625270637832,0.48115088,33863.0,33858.0,1.17935057]
[1625270637933,0.59915088,33863.0,33858.0,1.17935057]
[1625270638233,1.21869789,33860.0,33857.0,0.9836]
[1625270638331,1.55931789,33860.0,33857.0,0.9836]
[1625270638534,1.55931789,33860.0,33858.0,0.00685852]
[1625270638786,1.21876444,33859.0,33858.0,0.00685852]
[1625270638884,1.27776444,33859.0,33858.0,0.00685852]
[1625270639133,1.27776444,33859.0,33857.0,0.9836]
[1625270639235,1.33676444,33859.0,33857.0,0.9836]
[1625270639692,2.61085,33858.0,33857.0,0.9836]
[1625270639784,3.15100088,33858.0,33857.0,0.9836]
[1625270639933,3.21000088,33858.0,33857.0,0.9836]
[1625270640436,3.15100088,33858.0,33857.0,0.9836]
[1625270640536,3.21000088,33858.0,33857.0,0.9836]
[1625270641538,3.15100088,33858.0,33857.0,0.9836]
[1625270642287,3.21000088,33858.0,33857.0,0.9836]
[1625270642487,3.15100088,33858.0,33857.0,0.9836]
[1625270642587,3.21000088,33858.0,33857.0,0.9836]
[1625270643090,3.21000088,33858.0,33857.0,0.0001]
[1625270643238,3.21000088,33858.0,33845.0,1.18566223]
[1625270643340,3.21000088,33858.0,33846.0,1.18526438]
[1625270643538,3.21000088,33858.0,33846.0,1.19212447]
[1625270643789,1.21787091,33855.0,33846.0,0.00686009]
[1625270643889,0.72172632,33847.0,33845.0,1.18582692]
[1625270643989,0.95035632,33847.0,33845.0,1.18582692]
[1625270644090,0.95035632,33847.0,33845.0,1.24482692]
[1625270644240,0.95035632,33847.0,33844.0,1.18541624]
[1625270644491,0.95035632,33847.0,33846.0,0.00686028]
[1625270644694,0.95035632,33847.0,33846.0,0.059]
[1625270644891,0.95035632,33847.0,33845.0,1.19193403]
[1625270645141,0.95035632,33847.0,33846.0,0.006777]
[1625270645542,0.95035632,33847.0,33846.0,0.065777]
[1625270645742,0.95035632,33847.0,33846.0,0.059]
[1625270645992,0.95035632,33847.0,33846.0,0.00677749]
[1625270646093,0.95035632,33847.0,33846.0,0.06577749]
[1625270647195,0.95035632,33847.0,33846.0,0.00677749]
[1625270647396,0.95035632,33847.0,33846.0,0.06577749]
[1625270647598,0.95035632,33847.0,33846.0,0.059]
[1625270647799,0.95035632,33847.0,33846.0,0.06577708]
[1625270649104,0.95035632,33847.0,33846.0,0.00677708]
[1625270649203,0.95035632,33847.0,33846.0,0.06577708]
[1625270649453,0.95035632,33847.0,33846.0,0.059]
[1625270649654,0.95035632,33847.0,33846.0,0.06577667]
[1625270649755,0.95035632,33847.0,33846.0,0.00677667]
[1625270650005,0.95035632,33847.0,33844.0,0.06577681]
[1625270650454,0.95035632,33847.0,33845.0,0.00677663]
[1625270650654,0.95035632,33847.0,33845.0,0.06577663]
[1625270651005,0.95035632,33847.0,33846.0,0.0067766]
[1625270651254,0.95035632,33847.0,33846.0,0.0657766]
[1625270651356,0.95035632,33847.0,33846.0,0.0067766]
[1625270651454,0.95035632,33847.0,33846.0,0.0657766]
[1625270651604,0.95035632,33847.0,33846.0,0.059]
[1625270651807,0.95035632,33847.0,33846.0,0.06577687]
[1625270652058,0.95035632,33847.0,33846.0,0.00677687]
[1625270652358,0.95035632,33847.0,33846.0,0.06577687]
[1625270652508,0.95035632,33847.0,33846.0,0.00677687]
[1625270652607,0.95035632,33847.0,33843.0,0.24057544]
[1625270652758,0.95035632,33847.0,33843.0,0.35857544]
[1625270652859,0.95035632,33847.0,33844.0,0.006777]
[1625270653058,0.95035632,33847.0,33844.0,0.065777]
[1625270653411,0.95035632,33847.0,33845.0,0.00677703]
[1625270653563,0.95035632,33847.0,33845.0,0.06577703]
[1625270653860,0.95035632,33847.0,33845.0,0.00677703]
[1625270653960,0.95035632,33847.0,33842.0,1.18559843]
[1625270654060,0.95035632,33847.0,33845.0,0.059]
[1625270654513,0.95035632,33847.0,33846.0,0.00677684]
[1625270654862,0.72172632,33847.0,33846.0,0.00677684]
[1625270654960,0.72172632,33847.0,33846.0,0.12677683]
[1625270655062,0.72172632,33847.0,33846.0,0.11999999]
[1625270655263,0.72172632,33847.0,33846.0,0.12677644]
[1625270655564,0.72172632,33847.0,33846.0,0.18577644]
[1625270656219,0.72172632,33847.0,33846.0,0.21177644]
[1625270656817,0.81102632,33847.0,33846.0,0.21177644]
[1625270657167,0.72172632,33847.0,33846.0,0.21177644]
[1625270657317,0.72172632,33847.0,33846.0,0.15277644]
[1625270657717,0.72172632,33847.0,33846.0,0.21177644]
[1625270658669,0.72172632,33847.0,33846.0,0.15277644]
[1625270658818,0.72172632,33847.0,33846.0,0.21177644]
[1625270659419,0.72172632,33847.0,33846.0,0.15277644]
[1625270659869,1.00274632,33847.0,33846.0,0.15277644]
[1625270661025,1.00274632,33847.0,33842.0,0.46991244]
[1625270661125,1.56174632,33847.0,33842.0,0.46991244]
[1625270661227,1.62074632,33847.0,33841.0,0.2929]
[1625270661378,1.12074632,33847.0,33841.0,0.2929]
[1625270661476,1.12074632,33847.0,33843.0,0.00676546]
[1625270661677,1.12074632,33847.0,33842.0,0.00676542]
[1625270661778,1.06174632,33847.0,33842.0,0.06576542]
[1625270661927,0.24057544,33843.0,33842.0,0.059]
[1625270662279,0.24057544,33843.0,33842.0,0.06576549]
[1625270662829,0.24057544,33843.0,33842.0,0.00676549]
[1625270662933,0.29957544,33843.0,33842.0,0.00676549]
[1625270663030,0.35857544,33843.0,33842.0,0.00676549]
[1625270663281,0.35857544,33843.0,33837.0,0.00676576]
[1625270663683,0.29957544,33843.0,33837.0,0.06576576]
[1625270663783,0.29957544,33843.0,33837.0,0.059]
[1625270664087,0.29957544,33843.0,33838.0,0.0067655]
[1625270664287,0.29957544,33843.0,33838.0,0.0657655]
[1625270664489,0.29957544,33843.0,33838.0,0.0067655]
[1625270664588,0.29957544,33843.0,33839.0,0.00676621]
[1625270664891,0.35857544,33843.0,33839.0,0.00676621]
[1625270665190,0.35857544,33843.0,33837.0,0.00685087]
[1625270665642,0.0888,33842.0,33837.0,0.00685087]
[1625270665842,0.118,33842.0,33837.0,0.00685087]
[1625270665993,0.35857544,33841.0,33837.0,0.00685087]
[1625270666093,0.5,33840.0,33829.0,1.18756548]
[1625270666195,1.21943,33840.0,33829.0,0.86876548]
[1625270666294,1.33743,33840.0,33829.0,0.75286548]
[1625270666398,1.33743,33840.0,33829.0,0.55486548]
[1625270666494,1.36743,33840.0,33829.0,0.18976548]
[1625270666594,1.36743,33840.0,33827.0,1.30391769]
[1625270666695,1.36743,33840.0,33824.0,1.5268699]
[1625270666896,3.8224,33826.0,33824.0,1.2691699]
[1625270666993,0.5,33825.0,33824.0,1.0663699]
[1625270667094,0.618,33825.0,33824.0,0.8429699]
[1625270667245,0.618,33825.0,33824.0,0.6935699]
[1625270667344,0.618,33825.0,33809.0,1.48785587]
[1625270667646,0.618,33825.0,33810.0,0.00683317]
[1625270667895,0.96230176,33811.0,33810.0,0.00683317]
[1625270667999,1.18378176,33811.0,33810.0,0.00683317]
[1625270668096,1.24278176,33811.0,33810.0,0.00683317]
[1625270668295,1.18378176,33811.0,33810.0,0.00683317]
[1625270668496,1.24278176,33811.0,33809.0,0.00683334]
[1625270668696,1.24278176,33811.0,33810.0,0.00683313]
[1625270668796,1.18378176,33811.0,33810.0,0.00683313]
[1625270668996,1.24278176,33811.0,33809.0,0.00683368]
[1625270669096,1.18378176,33811.0,33808.0,0.94613368]
[1625270669197,1.24278176,33811.0,33808.0,0.94613368]
[1625270670305,1.30178176,33811.0,33808.0,0.94613368]
[1625270670403,1.24278176,33811.0,33808.0,0.94613368]
[1625270670701,1.30178176,33811.0,33808.0,0.94613368]
[1625270672207,1.24278176,33811.0,33808.0,0.94613368]
[1625270672313,1.30178176,33811.0,33808.0,0.94613368]
[1625270672508,1.24278176,33811.0,33808.0,0.94613368]
[1625270673159,1.30178176,33811.0,33808.0,0.94613368]
[1625270675264,1.24278176,33811.0,33808.0,0.94613368]
[1625270675364,1.30178176,33811.0,33808.0,0.94613368]
[1625270676265,1.24278176,33811.0,33808.0,0.94613368]
[1625270676367,1.02130176,33811.0,33808.0,0.94613368]
[1625270676465,0.96230176,33811.0,33808.0,1.22778368]
[1625270677067,0.96230176,33811.0,33808.0,1.28678368]
[1625270677570,0.96230176,33811.0,33808.0,1.34578368]
[1625270677672,0.96230176,33811.0,33808.0,1.28678368]
[1625270678070,0.96230176,33811.0,33808.0,1.34578368]
[1625270679427,1.26156176,33811.0,33808.0,0.94613368]
[1625270679528,0.5,33810.0,33808.0,0.94613368]
[1625270679631,0.6472,33810.0,33808.0,0.75313368]
[1625270679727,0.7062,33810.0,33802.0,1.01773244]
[1625270679825,0.03,33809.0,33802.0,0.73973244]
[1625270679925,0.089,33809.0,33802.0,0.50893244]
[1625270680074,0.78072632,33803.0,33802.0,0.27783244]
[1625270680177,1.61353632,33803.0,33802.0,0.05983244]
[1625270680275,1.61353632,33803.0,33795.0,1.52659866]
[1625270680376,1.61353632,33803.0,33789.0,0.9958]
[1625270680474,5.0742,33790.0,33789.0,0.9958]
[1625270680576,5.42385,33790.0,33789.0,0.9958]
[1625270680674,5.42385,33790.0,33789.0,0.8056]
[1625270680827,5.42385,33790.0,33771.0,1.53621173]
[1625270680973,5.48285,33790.0,33771.0,1.53621173]
[1625270681073,5.48285,33790.0,33772.0,0.29957544]
[1625270681275,5.48285,33790.0,33772.0,0.35857544]
[1625270681374,5.48285,33790.0,33772.0,0.29957544]
[1625270681626,5.48285,33790.0,33772.0,0.24057544]
[1625270681823,5.48285,33790.0,33772.0,0.29957544]
[1625270682073,0.24057544,33780.0,33776.0,0.35857544]
[1625270682177,0.52862544,33780.0,33776.0,0.35857544]
[1625270682976,0.52862544,33780.0,33772.0,0.24057544]
[1625270683179,0.52862544,33780.0,33772.0,1.66303417]
[1625270683627,0.52862544,33780.0,33772.0,0.35857544]
[1625270684027,0.52862544,33780.0,33776.0,0.24057544]
[1625270684126,0.52862544,33780.0,33776.0,0.35857544]
[1625270685631,0.52862544,33780.0,33776.0,0.29957544]
[1625270685780,0.58762544,33780.0,33776.0,0.29957544]
[1625270685981,0.24057544,33777.0,33776.0,0.29957544]
[1625270687384,0.24057544,33784.0,33776.0,0.35857544]
[1625270687484,0.175,33801.0,33776.0,0.63867544]
[1625270687588,0.118,33801.0,33776.0,0.63867544]
[1625270688034,0.24057544,33786.0,33785.0,0.24057544]
[1625270688435,0.24057544,33786.0,33785.0,0.29957544]
[1625270688585,0.24057544,33786.0,33785.0,0.35857544]
[1625270688984,0.24057544,33786.0,33785.0,0.24057544]
[1625270689086,0.55564544,33786.0,33785.0,0.24057544]
[1625270689196,0.61464544,33786.0,33778.0,0.24057544]
[1625270689690,0.61464544,33786.0,33768.0,0.057]
[1625270689794,0.61464544,33786.0,33776.0,0.059]
[1625270689891,0.61464544,33786.0,33772.0,0.29957544]
[1625270689991,0.61464544,33786.0,33772.0,0.24057544]
[1625270690145,0.72172632,33773.0,33768.0,0.35857544]
[1625270690243,0.95916632,33773.0,33768.0,0.35857544]
[1625270690942,1.01816632,33773.0,33767.0,0.51096664]
[1625270691143,1.01816632,33773.0,33762.0,0.51179385]
[1625270691344,0.95916632,33773.0,33762.0,0.57079385]
[1625270691448,0.95916632,33773.0,33762.0,0.62979385]
[1625270691748,1.01816632,33773.0,33762.0,0.57079385]
[1625270691848,1.01816632,33773.0,33762.0,0.62979385]
[1625270691998,1.01816632,33773.0,33762.0,0.118]
[1625270691999,1.07716632,33773.0,33762.0,0.118]
[1625270692100,0.48115088,33763.0,33762.0,0.118]
[1625270692197,0.77681088,33763.0,33762.0,0.059]
[1625270692298,0.77681088,33763.0,33761.0,0.7527265]
[1625270692598,0.77681088,33763.0,33761.0,0.24057544]
[1625270693047,0.77681088,33763.0,33759.0,0.51165841]
[1625270693199,0.71859088,33773.0,33759.0,0.62965841]
[1625270693303,0.48115088,33773.0,33759.0,0.118]
[1625270693402,0.48115088,33773.0,33759.0,0.36005]
[1625270693700,0.48115088,33773.0,33762.0,0.51125923]
[1625270693801,0.54015088,33773.0,33762.0,0.51125923]
[1625270693900,0.54015088,33773.0,33762.0,0.62925923]
[1625270694001,0.54015088,33773.0,33762.0,0.059]
[1625270694101,0.54015088,33773.0,33768.0,0.24057544]
[1625270694201,0.59915088,33773.0,33765.0,0.24057544]
[1625270694302,0.86853088,33773.0,33765.0,0.24057544]
[1625270695257,0.86853088,33773.0,33758.0,0.9366]
[1625270695453,0.86853088,33773.0,33758.0,0.9956]
[1625270695554,0.86853088,33773.0,33758.0,1.0546]
[1625270696055,0.24057544,33761.0,33760.0,0.24057544]
[1625270696205,0.51940544,33761.0,33760.0,0.29957544]
[1625270696305,0.51940544,33761.0,33760.0,0.24057544]
[1625270696653,0.27883,33761.0,33760.0,0.35857544]
[1625270697455,0.27883,33761.0,33760.0,0.29957544]
[1625270698108,0.51940544,33761.0,33760.0,0.29957544]
[1625270699660,0.51940544,33761.0,33760.0,0.35857544]
[1625270699760,0.27883,33761.0,33760.0,0.35857544]
[1625270699860,0.24057544,33764.0,33760.0,0.35857544]
[1625270700060,0.24057544,33764.0,33763.0,0.24057544]
[1625270700263,0.24057544,33764.0,33763.0,0.29957544]
[1625270701062,0.24057544,33764.0,33763.0,0.059]
[1625270702113,0.24057544,33764.0,33763.0,0.54015088]
[1625270702717,0.24057544,33764.0,33763.0,0.48115088]
[1625270703218,0.24057544,33764.0,33763.0,0.54015088]
[1625270703469,0.24057544,33764.0,33758.0,0.9366]
[1625270703569,0.47031544,33764.0,33758.0,0.9366]
[1625270703719,0.47031544,33764.0,33758.0,0.9956]
[1625270703820,0.47031544,33764.0,33758.0,1.0546]
[1625270704123,0.47031544,33764.0,33763.0,0.24057544]
[1625270704222,0.47031544,33764.0,33763.0,0.29957544]
[1625270704423,0.47031544,33764.0,33763.0,0.24057544]
[1625270704625,0.47031544,33764.0,33763.0,0.29957544]
[1625270704725,0.47031544,33764.0,33763.0,0.24057544]